[Event "CZE-ch Amateurs 2022"]
[Site "Luhacovice"]
[Date "2022.03.14"]
[Round "4.13"]
[White "Hampl, David"]
[Black "Cupek, Martin"]
[Result "0-1"]
[ECO "B07"]
[WhiteElo "1443"]
[BlackElo "2108"]
[Annotator "ChessBase"]
[PlyCount "50"]
[EventDate "2022.03.12"]
[EventType "swiss"]
[EventCountry "CZE"]
[SourceTitle "playchess.com"]
[Source "ChessBase"]
[SourceQuality "1"]
[TimeControl "5400+30"]

1. d4 {[%emt 0:00:05]} d6 {[%emt 0:00:09]} 2. e4 {[%emt 0:00:15]} Nd7 {[%emt 0:00:44]} 3. Nc3 {[%emt 0:00:46]} e5 {[%emt 0:00:48]} 4. Be3 {[%emt 0:01:16]} Ngf6 {[%emt 0:02:29]} 5. f3 {[%emt 0:01:30]} c6 {[%emt 0:02:39]} 6. Qd2 {[%emt 0:03:20]} Be7 {[%emt 0:03:35]} 7. g4 {[%emt 0:05:42]} h5 {[%emt 0:04:43]} 8. gxh5 {[%emt 0:02:47]} Nxh5 {[%emt 0:00:23]} 9. Bf2 {[%emt 0:09:00]} Bg5 {[%emt 0:01:06]} 10. Qd1 {[%emt 0:02:22]} Bh4 {[%emt 0:05:01]} 11. Qd2 {[%emt 0:04:50]} Bxf2+ {[%emt 0:04:13]} 12. Qxf2 {[%emt 0:00:54]} exd4 {[%emt 0:00:05]} 13. Nce2 {[%emt 0:01:05]} Qa5+ {[%emt 0:04:30]} 14. c3 {[%emt 0:01:54]} dxc3 {[%emt 0:02:21]} 15. Nxc3 {[%emt 0:00:20]} Qc5 {[%emt 0:06:16]} 16. Qg2 {[%emt 0:03:21]} Qe3+ {[%emt 0:01:10]} 17. Be2 {[%emt 0:03:02]} Ne5 {[%emt 0:00:43]} 18. Nd1 {[%emt 0:13:23]} Qd4 {[%emt 0:06:26]} 19. Nh3 {[%emt 0:05:39]} Qb4+ {[%emt 0:03:02]} 20. Kf1 {[%emt 0:02:15]} Qd2 {[%emt 0:01:55]} 21. Ndf2 {[%emt 0:05:05]} Bxh3 {[%emt 0:02:54]} 22. Qxh3 {[%emt 0:02:02]} Qxe2+ {[%emt 0:00:16]} 23. Kxe2 {[%emt 0:02:46]} Nf4+ {[%emt 0:00:04]} 24. Ke3 {[%emt 0:00:05]} Nxh3 {[%emt 0:00:07]} 25. f4 {[%emt 0:00:27]} Nxf2 {[%emt 0:00:21]} 0-1

[Event "CZE-ch Amateurs 2022"]
[Site "Luhacovice"]
[Date "2022.03.14"]
[Round "4.14"]
[White "Svacina, Tobias"]
[Black "Kupsa, Matej"]
[Result "1/2-1/2"]
[ECO "D40"]
[WhiteElo "1749"]
[BlackElo "2097"]
[Annotator "ChessBase"]
[PlyCount "47"]
[EventDate "2022.03.12"]
[EventType "swiss"]
[EventCountry "CZE"]
[SourceTitle "playchess.com"]
[Source "ChessBase"]
[SourceQuality "1"]
[TimeControl "5400+30"]

1. e4 {[%emt 0:00:28]} d5 {[%emt 0:00:06]} 2. exd5 {[%emt 0:00:28]} Nf6 {[%emt 0:00:07]} 3. c4 {[%emt 0:03:45]} c6 {[%emt 0:01:18]} 4. d4 {[%emt 0:00:27]} cxd5 {[%emt 0:00:10]} 5. Nc3 {[%emt 0:00:20]} Nc6 {[%emt 0:00:41]} 6. Bg5 {[%emt 0:02:23]} e6 {[%emt 0:04:28]} 7. Nf3 {[%emt 0:02:38]} Be7 {[%emt 0:00:22]} 8. Bd3 {[%emt 0:01:09]} dxc4 {[%emt 0:00:07]} 9. Bxc4 {[%emt 0:00:04]} O-O {[%emt 0:00:52]} 10. a3 {[%emt 0:00:24]} b6 {[%emt 0:11:05]} 11. O-O {[%emt 0:02:12]} Bb7 {[%emt 0:08:40]} 12. Qd3 {[%emt 0:01:29]} h6 {[%emt 0:01:18]} 13. Bh4 {[%emt 0:04:20]} Nd5 {[%emt 0:05:33]} 14. Bg3 {[%emt 0:07:18]} Nxc3 {[%emt 0:05:51]} 15. bxc3 {[%emt 0:05:48]} Qc8 {[%emt 0:03:15]} 16. Rfe1 {[%emt 0:03:57]} Bf6 {[%emt 0:03:01]} 17. Bb3 {[%emt 0:03:16]} Ba6 {[%emt 0:01:18]} 18. Qe4 {[%emt 0:03:10]} Ne7 {[%emt 0:05:20]} 19. Ne5 {[%emt 0:06:39]} Bb7 {[%emt 0:04:04]} 20. Qd3 {[%emt 0:01:49]} Ba6 {[%emt 0:01:45]} 21. Qe4 {[%emt 0:00:37]} Bb7 {[%emt 0:00:08]} 22. Qd3 {[%emt 0:00:06]} Ba6 {[%emt 0:00:03]} 23. Qe4 {[%emt 0:00:05]} Bb7 {[%emt 0:00:06]} 24. Qd3 {[%emt 0:00:06]} 1/2-1/2

[Event "CZE-ch Amateurs 2022"]
[Site "Luhacovice"]
[Date "2022.03.14"]
[Round "4.15"]
[White "Galicek, Stanislav"]
[Black "Bakalar, Jan"]
[Result "1/2-1/2"]
[ECO "A29"]
[WhiteElo "2079"]
[BlackElo "1820"]
[Annotator "ChessBase"]
[PlyCount "78"]
[EventDate "2022.03.12"]
[EventType "swiss"]
[EventCountry "CZE"]
[SourceTitle "playchess.com"]
[Source "ChessBase"]
[SourceQuality "1"]
[TimeControl "5400+30"]

1. c4 {[%emt 0:01:10]} e5 {[%emt 0:00:45]} 2. Nc3 {[%emt 0:00:09]} Nf6 {[%emt 0:00:08]} 3. Nf3 {[%emt 0:00:31]} Nc6 {[%emt 0:00:24]} 4. e4 {[%emt 0:00:40]} Bb4 {[%emt 0:04:33]} 5. d3 {[%emt 0:01:13]} Bxc3+ {[%emt 0:02:48]} 6. bxc3 {[%emt 0:00:03]} h6 {[%emt 0:00:32]} 7. g3 {[%emt 0:11:34]} d6 {[%emt 0:00:46]} 8. Bg2 {[%emt 0:01:21]} O-O {[%emt 0:00:35]} 9. O-O {[%emt 0:00:33]} Bg4 {[%emt 0:04:47]} 10. h3 {[%emt 0:00:53]} Bxf3 {[%emt 0:01:27]} 11. Qxf3 {[%emt 0:01:07]} Kh7 {[%emt 0:02:18]} 12. Qe3 {[%emt 0:08:28]} Ng8 {[%emt 0:00:22]} 13. f4 {[%emt 0:01:10]} f6 {[%emt 0:05:59]} 14. f5 {[%emt 0:06:47]} Nge7 {[%emt 0:03:59]} 15. g4 {[%emt 0:02:33]} Rh8 {[%emt 0:00:48]} 16. h4 {[%emt 0:02:56]} Kg8 {[%emt 0:00:38]} 17. g5 {[%emt 0:00:42]} hxg5 {[%emt 0:00:15]} 18. hxg5 {[%emt 0:00:16]} Kf8 {[%emt 0:01:15]} 19. g6 {[%emt 0:12:21]} Na5 {[%emt 0:04:45]} 20. c5 {[%emt 0:09:29]} dxc5 {[%emt 0:03:54]} 21. Qxc5 {[%emt 0:01:38]} b6 {[%emt 0:00:10]} 22. Qe3 {[%emt 0:01:12]} Qd6 {[%emt 0:00:51]} 23. Rf3 {[%emt 0:02:03]} Rd8 {[%emt 0:04:44]} 24. Bf1 {[%emt 0:00:39]} c5 {[%emt 0:02:14]} 25. Ba3 {[%emt 0:01:12]} Ke8 {[%emt 0:05:23]} 26. Rd1 {[%emt 0:01:27]} Nac6 {[%emt 0:03:49]} 27. Rd2 {[%emt 0:02:34]} Kd7 {[%emt 0:05:13]} 28. Rh2 {[%emt 0:00:57]} Rxh2 {[%emt 0:09:12]} 29. Kxh2 {[%emt 0:00:03]} Rh8+ {[%emt 0:04:24]} 30. Rh3 {[%emt 0:00:33]} Rxh3+ {[%emt 0:00:36]} 31. Qxh3 {[%emt 0:00:26]} Qb8 {[%emt 0:00:05]} 32. Qh7 {[%emt 0:08:17]} Qf8 {[%emt 0:04:36]} 33. Be2 {[%emt 0:01:02]} Qg8 {[%emt 0:05:02]} 34. Qxg8 {[%emt 0:00:40]} Nxg8 {[%emt 0:00:02]} 35. Bd1 {[%emt 0:00:36]} Nge7 {[%emt 0:04:58]} 36. Bb3 {[%emt 0:00:21]} Kd6 {[%emt 0:00:29]} 37. Kg2 {[%emt 0:00:43]} b5 {[%emt 0:00:38]} 38. Bb2 {[%emt 0:03:31]} a5 {[%emt 0:02:26]} 39. a4 {[%emt 0:01:40]} b4 {[%emt 0:00:37]} 1/2-1/2

[Event "CZE-ch Amateurs 2022"]
[Site "Luhacovice"]
[Date "2022.03.14"]
[Round "4.16"]
[White "Slepov, Kyryl"]
[Black "Fishchuk, Vladyslav"]
[Result "1-0"]
[ECO "A20"]
[WhiteElo "2064"]
[BlackElo "1657"]
[Annotator "ChessBase"]
[PlyCount "117"]
[EventDate "2022.03.12"]
[EventType "swiss"]
[EventCountry "CZE"]
[SourceTitle "playchess.com"]
[Source "ChessBase"]
[SourceQuality "1"]
[TimeControl "5400+30"]

1. c4 {[%emt 0:01:04]} e5 {[%emt 0:00:07]} 2. g3 {[%emt 0:00:07]} c6 {[%emt 0:00:05]} 3. Nf3 {[%emt 0:00:22]} e4 {[%emt 0:00:06]} 4. Nd4 {[%emt 0:00:07]} d5 {[%emt 0:00:08]} 5. cxd5 {[%emt 0:00:15]} Qxd5 {[%emt 0:00:09]} 6. Nc2 {[%emt 0:00:12]} Nf6 {[%emt 0:00:08]} 7. Nc3 {[%emt 0:00:15]} Qe5 {[%emt 0:00:07]} 8. Bg2 {[%emt 0:00:38]} Be7 {[%emt 0:00:09]} 9. Ne3 {[%emt 0:00:09]} Na6 {[%emt 0:00:43]} 10. Qc2 {[%emt 0:02:56]} Nb4 {[%emt 0:01:36]} 11. Qb1 {[%emt 0:00:15]} Nbd5 {[%emt 0:00:42]} 12. Nxe4 {[%emt 0:02:35]} Nxe3 {[%emt 0:00:11]} 13. Nxf6+ {[%emt 0:02:59]} Qxf6 {[%emt 0:00:24]} 14. fxe3 {[%emt 0:01:11]} Bf5 {[%emt 0:01:41]} 15. e4 {[%emt 0:00:42]} Bg4 {[%emt 0:02:44]} 16. Qc2 {[%emt 0:01:13]} h5 {[%emt 0:01:46]} 17. d3 {[%emt 0:01:27]} h4 {[%emt 0:01:03]} 18. Rf1 {[%emt 0:01:47]} Qe5 {[%emt 0:03:31]} 19. Qc3 {[%emt 0:02:35]} Bf6 {[%emt 0:02:01]} 20. Qxe5+ {[%emt 0:02:53]} Bxe5 {[%emt 0:00:09]} 21. Kf2 {[%emt 0:00:33]} hxg3+ {[%emt 0:01:32]} 22. hxg3 {[%emt 0:01:46]} O-O-O {[%emt 0:00:47]} 23. Rb1 {[%emt 0:03:31]} Rh2 {[%emt 0:01:30]} 24. Rg1 {[%emt 0:06:40]} Rd6 {[%emt 0:03:10]} 25. Bf4 {[%emt 0:03:14]} Rf6 {[%emt 0:00:30]} 26. Ke3 {[%emt 0:00:30]} Bxf4+ {[%emt 0:00:30]} 27. gxf4 {[%emt 0:02:57]} Rfh6 {[%emt 0:00:29]} 28. Rbf1 {[%emt 0:03:16]} g6 {[%emt 0:02:51]} 29. Bf3 {[%emt 0:00:22]} Bxf3 {[%emt 0:00:15]} 30. Rxf3 {[%emt 0:00:12]} Rh1 {[%emt 0:01:39]} 31. Rxh1 {[%emt 0:06:04]} Rxh1 {[%emt 0:00:08]} 32. Kd2 {[%emt 0:00:17]} Kd7 {[%emt 0:00:35]} 33. d4 {[%emt 0:02:11]} Rh4 {[%emt 0:01:18]} 34. Kd3 {[%emt 0:00:20]} Kd6 {[%emt 0:01:39]} 35. e5+ {[%emt 0:00:27]} Ke6 {[%emt 0:00:29]} 36. e4 {[%emt 0:00:10]} Rh2 {[%emt 0:00:30]} 37. Kc3 {[%emt 0:00:23]} Re2 {[%emt 0:07:07]} 38. f5+ {[%emt 0:00:13]} Ke7 {[%emt 0:01:04]} 39. fxg6 {[%emt 0:01:40]} fxg6 {[%emt 0:00:08]} 40. Rf6 {[%emt 0:03:21]} g5 {[%emt 0:04:22]} 41. Rg6 {[%emt 0:02:22]} Kf7 {[%emt 0:00:29]} 42. Rxg5 {[%emt 0:00:17]} Rxe4 {[%emt 0:00:16]} 43. Rf5+ {[%emt 0:00:26]} Kg7 {[%emt 0:01:09]} 44. Rf2 {[%emt 0:00:38]} c5 {[%emt 0:01:13]} 45. dxc5 {[%emt 0:00:19]} Rxe5 {[%emt 0:00:09]} 46. Kd4 {[%emt 0:00:08]} Re1 {[%emt 0:02:19]} 47. Kd5 {[%emt 0:00:35]} Rd1+ {[%emt 0:00:40]} 48. Ke6 {[%emt 0:00:06]} Kg8 {[%emt 0:02:22]} 49. Rf3 {[%emt 0:00:35]} Rg1 {[%emt 0:01:24]} 50. Kd7 {[%emt 0:01:18]} Rg5 {[%emt 0:00:41]} 51. Rc3 {[%emt 0:04:26]} Kf7 {[%emt 0:01:47]} 52. b4 {[%emt 0:00:49]} Kf6 {[%emt 0:01:04]} 53. Kd6 {[%emt 0:00:51]} Kf5 {[%emt 0:01:35]} 54. b5 {[%emt 0:01:18]} Ke4 {[%emt 0:01:23]} 55. c6 {[%emt 0:00:10]} Rd5+ {[%emt 0:01:13]} 56. Kc7 {[%emt 0:00:18]} bxc6 {[%emt 0:00:10]} 57. bxc6 {[%emt 0:00:07]} Kd4 {[%emt 0:00:20]} 58. Rc1 {[%emt 0:00:33]} a5 {[%emt 0:00:47]} 59. Rd1+ {[%emt 0:01:56]} 1-0

[Event "CZE-ch Amateurs 2022"]
[Site "Luhacovice"]
[Date "2022.03.14"]
[Round "4.17"]
[White "Lang Simon"]
[Black "Zabystrzan, Pavel"]
[Result "0-1"]
[ECO "B14"]
[WhiteElo "1812"]
[BlackElo "2162"]
[Annotator "ChessBase"]
[PlyCount "68"]
[EventDate "2022.03.12"]
[EventType "swiss"]
[EventCountry "CZE"]
[SourceTitle "playchess.com"]
[Source "ChessBase"]
[SourceQuality "1"]
[TimeControl "5400+30"]

1. e4 {[%emt 0:00:34]} c6 {[%emt 0:00:22]} 2. d4 {[%emt 0:00:46]} d5 {[%emt 0:00:09]} 3. exd5 {[%emt 0:00:43]} cxd5 {[%emt 0:00:13]} 4. c4 {[%emt 0:01:15]} Nf6 {[%emt 0:00:11]} 5. Nc3 {[%emt 0:00:53]} g6 {[%emt 0:00:10]} 6. Qb3 {[%emt 0:01:13]} Bg7 {[%emt 0:00:13]} 7. cxd5 {[%emt 0:01:01]} O-O {[%emt 0:00:10]} 8. Be2 {[%emt 0:01:24]} Na6 {[%emt 0:01:07]} 9. Bf3 {[%emt 0:04:46]} Qb6 {[%emt 0:00:47]} 10. Qxb6 {[%emt 0:08:15]} axb6 {[%emt 0:00:04]} 11. Nge2 {[%emt 0:03:10]} Nb4 {[%emt 0:02:04]} 12. O-O {[%emt 0:03:25]} Rd8 {[%emt 0:05:22]} 13. Bg5 {[%emt 0:04:17]} Nbxd5 {[%emt 0:03:39]} 14. Nxd5 {[%emt 0:08:42]} Nxd5 {[%emt 0:00:11]} 15. Bxd5 {[%emt 0:01:25]} Rxd5 {[%emt 0:00:10]} 16. Bxe7 {[%emt 0:01:25]} Bg4 {[%emt 0:03:24]} 17. f3 {[%emt 0:02:33]} Re8 {[%emt 0:05:12]} 18. fxg4 {[%emt 0:04:32]} Rxe7 {[%emt 0:00:18]} 19. Rfe1 {[%emt 0:01:40]} Rb5 {[%emt 0:07:25]} 20. Rab1 {[%emt 0:02:23]} Re4 {[%emt 0:12:26]} 21. h3 {[%emt 0:02:24]} Kf8 {[%emt 0:04:37]} 22. Kf2 {[%emt 0:05:17]} f5 {[%emt 0:04:15]} 23. Kf3 {[%emt 0:04:56]} Bxd4 {[%emt 0:04:08]} 24. gxf5 {[%emt 0:02:01]} Re3+ {[%emt 0:03:39]} 25. Kg4 {[%emt 0:01:08]} Rbe5 {[%emt 0:06:45]} 26. Nxd4 {[%emt 0:03:11]} Rxe1 {[%emt 0:00:24]} 27. Rxe1 {[%emt 0:00:11]} Rxe1 {[%emt 0:00:09]} 28. Ne6+ {[%emt 0:01:33]} Ke7 {[%emt 0:01:52]} 29. Ng5 {[%emt 0:00:48]} h6 {[%emt 0:02:28]} 30. Nf3 {[%emt 0:00:26]} Re4+ {[%emt 0:00:18]} 31. Kg3 {[%emt 0:00:17]} gxf5 {[%emt 0:01:49]} 32. Nh4 {[%emt 0:00:21]} Kf6 {[%emt 0:00:41]} 33. Nf3 {[%emt 0:00:14]} Re2 {[%emt 0:00:29]} 34. Kf4 {[%emt 0:00:30]} Rxg2 {[%emt 0:00:23]} 0-1

[Event "CZE-ch Amateurs 2022"]
[Site "Luhacovice"]
[Date "2022.03.14"]
[Round "4.18"]
[White "Urban, Zdenek"]
[Black "Molnar, Ladislav"]
[Result "1/2-1/2"]
[ECO "E11"]
[WhiteElo "2093"]
[BlackElo "1775"]
[Annotator "ChessBase"]
[PlyCount "108"]
[EventDate "2022.03.12"]
[EventType "swiss"]
[EventCountry "CZE"]
[SourceTitle "playchess.com"]
[Source "ChessBase"]
[SourceQuality "1"]
[TimeControl "5400+30"]

1. d4 {[%emt 0:01:41]} Nf6 {[%emt 0:00:12]} 2. c4 {[%emt 0:00:09]} e6 {[%emt 0:00:06]} 3. Nf3 {[%emt 0:00:49]} Bb4+ {[%emt 0:00:13]} 4. Bd2 {[%emt 0:00:35]} Bxd2+ {[%emt 0:01:10]} 5. Nbxd2 {[%emt 0:00:12]} d6 {[%emt 0:01:05]} 6. g3 {[%emt 0:01:18]} O-O {[%emt 0:00:20]} 7. Bg2 {[%emt 0:00:13]} Nbd7 {[%emt 0:04:49]} 8. b4 {[%emt 0:01:56]} c5 {[%emt 0:03:16]} 9. dxc5 {[%emt 0:00:10]} dxc5 {[%emt 0:01:15]} 10. b5 {[%emt 0:00:28]} Qc7 {[%emt 0:01:49]} 11. O-O {[%emt 0:00:16]} Rb8 {[%emt 0:02:19]} 12. a4 {[%emt 0:05:19]} b6 {[%emt 0:04:06]} 13. a5 {[%emt 0:00:28]} Bb7 {[%emt 0:03:30]} 14. Qc2 {[%emt 0:00:43]} bxa5 {[%emt 0:05:09]} 15. Qc3 {[%emt 0:00:48]} a6 {[%emt 0:01:29]} 16. bxa6 {[%emt 0:02:45]} Bxa6 {[%emt 0:00:25]} 17. Qxa5 {[%emt 0:01:10]} Qxa5 {[%emt 0:01:25]} 18. Rxa5 {[%emt 0:00:32]} Bb7 {[%emt 0:00:50]} 19. Rfa1 {[%emt 0:05:49]} Ra8 {[%emt 0:03:12]} 20. Ne5 {[%emt 0:03:48]} Rxa5 {[%emt 0:03:34]} 21. Rxa5 {[%emt 0:00:03]} Bxg2 {[%emt 0:02:00]} 22. Nxd7 {[%emt 0:00:07]} Nxd7 {[%emt 0:01:36]} 23. Kxg2 {[%emt 0:00:11]} Rc8 {[%emt 0:01:03]} 24. f4 {[%emt 0:01:18]} Kf8 {[%emt 0:00:29]} 25. Ra7 {[%emt 0:02:08]} Ke7 {[%emt 0:04:11]} 26. Ne4 {[%emt 0:02:22]} f6 {[%emt 0:01:29]} 27. Kf3 {[%emt 0:00:25]} h6 {[%emt 0:03:07]} 28. h4 {[%emt 0:01:00]} f5 {[%emt 0:03:14]} 29. Nf2 {[%emt 0:00:19]} g6 {[%emt 0:02:45]} 30. Nd3 {[%emt 0:00:14]} Kd6 {[%emt 0:04:43]} 31. e4 {[%emt 0:00:31]} h5 {[%emt 0:01:17]} 32. Ke3 {[%emt 0:00:43]} Rc6 {[%emt 0:05:23]} 33. Rb7 {[%emt 0:04:21]} Rc7 {[%emt 0:04:02]} 34. e5+ {[%emt 0:03:54]} Kc6 {[%emt 0:01:25]} 35. Rxc7+ {[%emt 0:00:06]} Kxc7 {[%emt 0:00:32]} 36. Kd2 {[%emt 0:00:41]} Kc6 {[%emt 0:01:12]} 37. Kc3 {[%emt 0:00:46]} Kb6 {[%emt 0:00:51]} 38. Ne1 {[%emt 0:05:36]} Nf8 {[%emt 0:02:33]} 39. Nf3 {[%emt 0:01:15]} Nd7 {[%emt 0:00:28]} 40. Ng5 {[%emt 0:00:16]} Nf8 {[%emt 0:00:14]} 41. Kb3 {[%emt 0:01:13]} Ka6 {[%emt 0:01:49]} 42. Ka4 {[%emt 0:00:26]} Kb6 {[%emt 0:00:15]} 43. Nf7 {[%emt 0:00:17]} Ka6 {[%emt 0:00:37]} 44. Nd6 {[%emt 0:01:04]} Nd7 {[%emt 0:00:59]} 45. Nb5 {[%emt 0:00:57]} Nf8 {[%emt 0:00:33]} 46. Kb3 {[%emt 0:00:52]} Kb6 {[%emt 0:00:24]} 47. Nc3 {[%emt 0:04:04]} Nd7 {[%emt 0:00:31]} 48. Na4+ {[%emt 0:00:46]} Kc6 {[%emt 0:00:46]} 49. Nc3 {[%emt 0:01:19]} Kb6 {[%emt 0:00:44]} 50. Nb5 {[%emt 0:00:14]} Nf8 {[%emt 0:01:13]} 51. Nd6 {[%emt 0:00:46]} Nd7 {[%emt 0:01:34]} 52. Nc8+ {[%emt 0:00:41]} Ka6 {[%emt 0:00:26]} 53. Ne7 {[%emt 0:00:16]} Nf8 {[%emt 0:00:23]} 54. Ng8 {[%emt 0:03:18]} Kb6 {[%emt 0:00:24]} 1/2-1/2

[Event "CZE-ch Amateurs 2022"]
[Site "Luhacovice"]
[Date "2022.03.14"]
[Round "4.19"]
[White "Horvath, Tomas"]
[Black "Bednar, Milos"]
[Result "1-0"]
[ECO "B21"]
[WhiteElo "2079"]
[BlackElo "1715"]
[Annotator "ChessBase"]
[PlyCount "43"]
[EventDate "2022.03.12"]
[EventType "swiss"]
[EventCountry "CZE"]
[SourceTitle "playchess.com"]
[Source "ChessBase"]
[SourceQuality "1"]
[TimeControl "5400+30"]

1. e4 {[%emt 0:00:03]} c5 {[%emt 0:00:06]} 2. d4 {[%emt 0:00:06]} cxd4 {[%emt 0:00:05]} 3. c3 {[%emt 0:00:04]} d3 {[%emt 0:00:05]} 4. Bxd3 {[%emt 0:00:05]} g6 {[%emt 0:00:22]} 5. Nf3 {[%emt 0:00:28]} Nc6 {[%emt 0:00:07]} 6. c4 {[%emt 0:00:19]} Bg7 {[%emt 0:00:27]} 7. O-O {[%emt 0:00:19]} e6 {[%emt 0:00:15]} 8. Nc3 {[%emt 0:01:02]} Nge7 {[%emt 0:00:11]} 9. Bf4 {[%emt 0:03:43]} d5 {[%emt 0:00:55]} 10. exd5 {[%emt 0:05:05]} exd5 {[%emt 0:00:22]} 11. Nb5 {[%emt 0:01:53]} O-O {[%emt 0:00:41]} 12. Nc7 {[%emt 0:01:01]} dxc4 {[%emt 0:09:14]} 13. Bxc4 {[%emt 0:02:39]} Rb8 {[%emt 0:01:52]} 14. Qxd8 {[%emt 0:07:12]} Rxd8 {[%emt 0:00:06]} 15. Ng5 {[%emt 0:00:58]} Rf8 {[%emt 0:07:03]} 16. Rfe1 {[%emt 0:13:58]} Bxb2 {[%emt 0:05:08]} 17. Rad1 {[%emt 0:01:07]} Bf6 {[%emt 0:11:31]} 18. Ne4 {[%emt 0:07:09]} Bg7 {[%emt 0:04:58]} 19. Bd6 {[%emt 0:05:01]} Be5 {[%emt 0:10:23]} 20. Bxe5 {[%emt 0:02:48]} Nxe5 {[%emt 0:00:07]} 21. Nf6+ {[%emt 0:00:09]} Kg7 {[%emt 0:00:10]} 22. Nfe8+ {[%emt 0:00:39]} 1-0

[Event "CZE-ch Amateurs 2022"]
[Site "Luhacovice"]
[Date "2022.03.14"]
[Round "4.20"]
[White "Kovalskyi, Roman"]
[Black "Navratilik, Pavel"]
[Result "1/2-1/2"]
[ECO "B20"]
[WhiteElo "1815"]
[BlackElo "2082"]
[Annotator "ChessBase"]
[PlyCount "83"]
[EventDate "2022.03.12"]
[EventType "swiss"]
[EventCountry "CZE"]
[SourceTitle "playchess.com"]
[Source "ChessBase"]
[SourceQuality "1"]
[TimeControl "5400+30"]

1. e4 {[%emt 0:00:04]} c5 {[%emt 0:00:06]} 2. b3 {[%emt 0:00:16]} d5 {[%emt 0:00:49]} 3. exd5 {[%emt 0:00:12]} Qxd5 {[%emt 0:00:30]} 4. Nc3 {[%emt 0:00:08]} Qd8 {[%emt 0:00:57]} 5. Bb2 {[%emt 0:00:11]} Nc6 {[%emt 0:01:11]} 6. Bb5 {[%emt 0:00:49]} Bd7 {[%emt 0:01:47]} 7. Nf3 {[%emt 0:00:55]} Nf6 {[%emt 0:00:32]} 8. Qe2 {[%emt 0:01:52]} e6 {[%emt 0:01:27]} 9. O-O-O {[%emt 0:02:42]} a6 {[%emt 0:03:59]} 10. Bxc6 {[%emt 0:00:59]} Bxc6 {[%emt 0:00:31]} 11. d4 {[%emt 0:00:37]} Be7 {[%emt 0:09:36]} 12. dxc5 {[%emt 0:07:44]} Qc7 {[%emt 0:03:49]} 13. Ne5 {[%emt 0:01:25]} O-O {[%emt 0:01:36]} 14. f3 {[%emt 0:02:51]} Bxc5 {[%emt 0:02:33]} 15. g4 {[%emt 0:01:02]} Rad8 {[%emt 0:10:14]} 16. h4 {[%emt 0:11:22]} Bd4 {[%emt 0:03:43]} 17. Nxc6 {[%emt 0:04:17]} Qxc6 {[%emt 0:01:27]} 18. Ne4 {[%emt 0:00:11]} Bxb2+ {[%emt 0:03:06]} 19. Kxb2 {[%emt 0:00:47]} Nxe4 {[%emt 0:00:42]} 20. fxe4 {[%emt 0:00:32]} Rxd1 {[%emt 0:03:05]} 21. Rxd1 {[%emt 0:00:20]} Rc8 {[%emt 0:00:18]} 22. e5 {[%emt 0:00:51]} h6 {[%emt 0:02:27]} 23. g5 {[%emt 0:01:20]} hxg5 {[%emt 0:01:26]} 24. hxg5 {[%emt 0:00:27]} Qc3+ {[%emt 0:02:01]} 25. Kb1 {[%emt 0:00:11]} Qg3 {[%emt 0:01:25]} 26. Rh1 {[%emt 0:23:26]} Rc5 {[%emt 0:05:17]} 27. Qh5 {[%emt 0:02:56]} Kf8 {[%emt 0:00:24]} 28. Qh8+ {[%emt 0:01:08]} Ke7 {[%emt 0:00:16]} 29. Rd1 {[%emt 0:00:12]} Rd5 {[%emt 0:01:44]} 30. Rxd5 {[%emt 0:00:07]} exd5 {[%emt 0:00:33]} 31. Qxg7 {[%emt 0:00:05]} d4 {[%emt 0:01:18]} 32. Qf6+ {[%emt 0:01:16]} Ke8 {[%emt 0:00:25]} 33. a4 {[%emt 0:00:30]} Qe1+ {[%emt 0:04:26]} 34. Ka2 {[%emt 0:00:22]} Qe4 {[%emt 0:08:23]} 35. Kb2 {[%emt 0:00:44]} Qe3 {[%emt 0:04:11]} 36. Qf5 {[%emt 0:00:43]} Qc3+ {[%emt 0:00:43]} 37. Ka2 {[%emt 0:00:38]} d3 {[%emt 0:00:55]} 38. cxd3 {[%emt 0:05:50]} Qc2+ {[%emt 0:05:46]} 39. Ka3 {[%emt 0:00:09]} a5 {[%emt 0:00:53]} 40. Qf4 {[%emt 0:02:17]} Qc3 {[%emt 0:02:55]} 41. Ka2 {[%emt 0:13:02]} Qc2+ {[%emt 0:00:19]} 42. Ka3 {[%emt 0:00:06]} 1/2-1/2

[Event "CZE-ch Amateurs 2022"]
[Site "Luhacovice"]
[Date "2022.03.15"]
[Round "5.1"]
[White "Zvolensky, David"]
[Black "Lorenc, Tomas"]
[Result "1-0"]
[ECO "B01"]
[WhiteElo "2159"]
[BlackElo "2183"]
[Annotator "ChessBase"]
[PlyCount "71"]
[EventDate "2022.03.12"]
[EventType "swiss"]
[EventCountry "CZE"]
[SourceTitle "playchess.com"]
[Source "ChessBase"]
[SourceQuality "1"]
[TimeControl "5400+30"]

1. e4 {[%emt 0:00:04]} d5 {[%emt 0:00:06]} 2. exd5 {[%emt 0:00:22]} Qxd5 {[%emt 0:00:02]} 3. Nc3 {[%emt 0:00:23]} Qa5 {[%emt 0:00:02]} 4. d4 {[%emt 0:00:25]} Nf6 {[%emt 0:00:01]} 5. Nf3 {[%emt 0:00:39]} Bg4 {[%emt 0:00:07]} 6. h3 {[%emt 0:00:23]} Bh5 {[%emt 0:00:02]} 7. g4 {[%emt 0:00:35]} Bg6 {[%emt 0:00:02]} 8. Ne5 {[%emt 0:01:05]} e6 {[%emt 0:00:01]} 9. Nc4 {[%emt 0:00:29]} Qa6 {[%emt 0:03:15]} 10. h4 {[%emt 0:01:42]} Qc6 {[%emt 0:06:05]} 11. Rh3 {[%emt 0:05:30]} Bb4 {[%emt 0:02:53]} 12. h5 {[%emt 0:01:27]} Be4 {[%emt 0:06:39]} 13. Nd2 {[%emt 0:04:07]} Bxc3 {[%emt 0:08:08]} 14. Rxc3 {[%emt 0:00:36]} Qd7 {[%emt 0:02:11]} 15. g5 {[%emt 0:00:38]} Nd5 {[%emt 0:00:15]} 16. Nxe4 {[%emt 0:00:22]} Nxc3 {[%emt 0:00:02]} 17. bxc3 {[%emt 0:00:28]} Qd5 {[%emt 0:12:48]} 18. Qd3 {[%emt 0:03:14]} Nd7 {[%emt 0:01:51]} 19. c4 {[%emt 0:03:16]} Qa5+ {[%emt 0:00:24]} 20. Bd2 {[%emt 0:00:08]} Qa4 {[%emt 0:02:33]} 21. Nc3 {[%emt 0:06:45]} Qc6 {[%emt 0:01:49]} 22. d5 {[%emt 0:01:06]} Qd6 {[%emt 0:00:45]} 23. Qe3 {[%emt 0:04:39]} O-O {[%emt 0:03:37]} 24. Ne4 {[%emt 0:01:08]} Qh2 {[%emt 0:01:57]} 25. O-O-O {[%emt 0:06:19]} Rae8 {[%emt 0:00:45]} 26. dxe6 {[%emt 0:07:41]} Rxe6 {[%emt 0:00:32]} 27. Bc3 {[%emt 0:01:10]} Ne5 {[%emt 0:02:56]} 28. Ng3 {[%emt 0:01:55]} Nc6 {[%emt 0:05:48]} 29. Qf4 {[%emt 0:00:12]} Rfe8 {[%emt 0:03:49]} 30. Bd3 {[%emt 0:02:29]} Ne5 {[%emt 0:03:41]} 31. Bf5 {[%emt 0:00:28]} Rd6 {[%emt 0:03:26]} 32. Bxe5 {[%emt 0:01:35]} Rxd1+ {[%emt 0:00:08]} 33. Kxd1 {[%emt 0:00:01]} Qg1+ {[%emt 0:00:09]} 34. Kd2 {[%emt 0:00:56]} f6 {[%emt 0:01:17]} 35. gxf6 {[%emt 0:01:30]} gxf6 {[%emt 0:00:11]} 36. Bxh7+ {[%emt 0:00:30]} 1-0